fUST/lending_fUST_20250217
["ID","MTS","AMOUNT","RATE_DAILY","PERIOD"]
[353284061,1739740233155,-500.0,8.219e-05,2]
[353284063,1739740233164,-500.0,8.219e-05,2]
[353284065,1739740233174,-500.0,8.219e-05,2]
[353284067,1739740233183,-500.0,8.219e-05,2]
[353284069,1739740233193,-552.41785918,8.219e-05,2]
[353284071,1739740233203,-500.0,8.219e-05,2]
[353284073,1739740233213,-500.0,8.219e-05,2]
[353284075,1739740233222,-500.0,8.219e-05,2]
[353284077,1739740233232,-500.0,8.219e-05,2]
[353284079,1739740233242,-501.84386738,8.219e-05,2]
[353284081,1739740233252,-500.0,8.219e-05,2]
[353284083,1739740233262,-500.0,8.219e-05,2]
[353284085,1739740233274,-500.0,8.219e-05,2]
[353284087,1739740233285,-503.99248947,8.219e-05,2]
[353284089,1739740233295,-500.0,8.219e-05,2]
[353284091,1739740233304,-506.35335213,8.219e-05,2]
[353284093,1739740233314,-500.0,8.219e-05,2]
[353284095,1739740233324,-522.32232211,8.219e-05,2]
[353284097,1739740233333,-500.0,8.219e-05,2]
[353284099,1739740233343,-500.0,8.219e-05,2]
[353284101,1739740233353,-500.0,8.219e-05,2]
[353284103,1739740233363,-500.0,8.219e-05,2]
[353284105,1739740233372,-500.0,8.219e-05,2]
[353284107,1739740233382,-500.0,8.219e-05,2]
[353284109,1739740233391,-500.0,8.219e-05,2]
[353284111,1739740233401,-500.0,8.219e-05,2]
[353284112,1739740233411,-500.0,8.219e-05,2]
[353284115,1739740233422,-511.50051567,8.219e-05,2]
[353284116,1739740233432,-476.19876726,8.219e-05,2]
[353284119,1739740233441,-500.0,8.219e-05,2]
[353284121,1739740233451,-500.0,8.219e-05,2]
[353284123,1739740233463,-500.0,8.219e-05,2]
[353284125,1739740233473,-1146.95,8.219e-05,2]
[353284127,1739740233483,-1176.16,8.219e-05,2]
[353284129,1739740233493,-262.7313939,8.219e-05,2]
[353284131,1739740233504,-500.0,8.219e-05,2]
[353284133,1739740233514,-1184.16,8.219e-05,2]
[353284135,1739740233524,-500.0,8.219e-05,2]
[353284137,1739740233534,-500.0,8.219e-05,2]
[353284139,1739740233543,-500.0,8.219e-05,2]
[353284141,1739740233553,-500.0,8.219e-05,2]
[353284143,1739740233564,-500.0,8.219e-05,2]
[353284145,1739740233574,-591.14668182,8.219e-05,2]
[353284147,1739740233583,-500.0,8.219e-05,2]
[353284149,1739740233593,-500.0,8.219e-05,2]
[353284151,1739740233602,-500.0,8.219e-05,2]
[353284152,1739740233611,-500.0,8.219e-05,2]
[353284153,1739740233620,-786.17,8.219e-05,2]
[353284154,1739740233630,-500.0,8.219e-05,2]
[353284155,1739740233640,-500.0,8.219e-05,2]
[353284156,1739740233650,-500.0,8.219e-05,2]
[353284157,1739740233659,-500.0,8.219e-05,2]
[353284158,1739740233669,-500.0,8.219e-05,2]
[353284159,1739740233678,-500.0,8.219e-05,2]
[353284160,1739740233688,-500.0,8.219e-05,2]
[353284161,1739740233697,-500.0,8.219e-05,2]
[353284162,1739740233706,-500.0,8.219e-05,2]
[353284163,1739740233716,-1024.08,8.219e-05,2]
[353284164,1739740233725,-594.12,8.219e-05,2]
[353284165,1739740233735,-500.0,8.219e-05,2]
[353284166,1739740233744,-500.0,8.219e-05,2]
[353284167,1739740233753,-500.0,8.219e-05,2]
[353284168,1739740233763,-500.0,8.219e-05,2]
[353284169,1739740233773,-500.0,8.219e-05,2]
[353284170,1739740233783,-500.0,8.219e-05,2]
[353284171,1739740233792,-500.0,8.219e-05,2]
[353284172,1739740233802,-500.0,8.219e-05,2]
[353284173,1739740233811,-500.0,8.219e-05,2]
[353284174,1739740233822,-500.0,8.219e-05,2]
[353284175,1739740233831,-500.0,8.219e-05,2]
[353284176,1739740233840,-500.0,8.219e-05,2]
[353284177,1739740233849,-500.0,8.219e-05,2]
[353284178,1739740233859,-547.87,8.219e-05,2]
[353284180,1739740233868,-500.0,8.219e-05,2]
[353284182,1739740233879,-500.0,8.219e-05,2]
[353284184,1739740233889,-500.0,8.219e-05,2]
[353284186,1739740233901,-169.14536853,8.219e-05,2]
[353284188,1739740233911,-500.0,8.219e-05,2]
[353284190,1739740233921,-500.0,8.219e-05,2]
[353284192,1739740233932,-500.0,8.219e-05,2]
[353284194,1739740233943,-500.0,8.219e-05,2]
[353284196,1739740233952,-500.0,8.219e-05,2]
[353284198,1739740233962,-500.0,8.219e-05,2]
[353284200,1739740233973,-500.0,8.219e-05,2]
[353284202,1739740233983,-500.0,8.219e-05,2]
[353284204,1739740233994,-500.0,8.219e-05,2]
[353284206,1739740234004,-500.0,8.219e-05,2]
[353284221,1739740234144,-501.45333094,8.219e-05,2]
[353284223,1739740234157,-536.06326696,8.219e-05,2]
[353284225,1739740234168,-500.0,8.219e-05,2]
[353284227,1739740234178,-500.0,8.219e-05,2]
[353284229,1739740234189,-500.0,8.219e-05,2]
[353284231,1739740234199,-500.0,8.219e-05,2]
[353284233,1739740234209,-500.0,8.219e-05,2]
[353284235,1739740234220,-500.0,8.219e-05,2]
[353284237,1739740234230,-500.0,8.219e-05,2]
[353284239,1739740234242,-500.0,8.219e-05,2]
[353284241,1739740234252,-500.0,8.219e-05,2]
[353284243,1739740234262,-500.0,8.219e-05,2]
[353284244,1739740234276,-501.59986121,8.219e-05,2]
[353284246,1739740234286,-500.0,8.219e-05,2]
[353284248,1739740234296,-1960.74,8.219e-05,2]
[353284250,1739740234306,-500.0,8.219e-05,2]
[353284252,1739740234317,-500.0,8.219e-05,2]
[353284254,1739740234326,-588.53,8.219e-05,2]
[353284256,1739740234336,-500.0,8.219e-05,2]
[353284258,1739740234346,-1146.4,8.219e-05,2]
[353284260,1739740234356,-892.63,8.219e-05,2]
[353284262,1739740234366,-500.0,8.219e-05,2]
[353284264,1739740234376,-500.0,8.219e-05,2]
[353284266,1739740234386,-500.0,8.219e-05,2]
[353284268,1739740234395,-500.0,8.219e-05,2]
[353284269,1739740234406,-500.0,8.219e-05,2]
[353284271,1739740234415,-613.35,8.219e-05,2]
[353284273,1739740234424,-162.77288074,8.219e-05,2]
[353284275,1739740234433,-500.0,8.219e-05,2]
[353284277,1739740234443,-500.0,8.219e-05,2]
[353284279,1739740234452,-500.0,8.219e-05,2]
[353284281,1739740234462,-500.0,8.219e-05,2]
[353284283,1739740234472,-500.0,8.219e-05,2]
[353284284,1739740234481,-2714.78,8.219e-05,2]
[353284285,1739740234490,-500.0,8.219e-05,2]
[353284286,1739740234499,-500.0,8.219e-05,2]
[353284287,1739740234509,-8813.69,8.219e-05,2]
[353284288,1739740234517,-500.0,8.219e-05,2]
[353284289,1739740234526,-500.0,8.219e-05,2]
[353284290,1739740234536,-500.0,8.219e-05,2]
[353284291,1739740234545,-500.0,8.219e-05,2]
[353284292,1739740234554,-500.0,8.219e-05,2]
[353284293,1739740234564,-266.1518056,8.219e-05,2]
[353284294,1739740234573,-532.86,8.219e-05,2]
[353284295,1739740234582,-500.0,8.219e-05,2]
[353284296,1739740234591,-500.0,8.219e-05,2]
[353284297,1739740234601,-500.0,8.219e-05,2]
[353284298,1739740234610,-500.0,8.219e-05,2]
[353284299,1739740234619,-500.0,8.219e-05,2]
[353284300,1739740234628,-500.0,8.219e-05,2]
[353284301,1739740234638,-246.24229999,8.219e-05,2]
[353284302,1739740234649,-1022.45,8.219e-05,2]
[353284303,1739740234658,-500.0,8.219e-05,2]
[353284304,1739740234670,-765.5,8.219e-05,2]
[353284305,1739740234680,-500.0,8.219e-05,2]
[353284306,1739740234690,-476.05259746,8.219e-05,2]
[353284307,1739740234699,-500.0,8.219e-05,2]
[353284308,1739740234709,-500.0,8.219e-05,2]
[353284309,1739740234718,-500.0,8.219e-05,2]
[353284310,1739740234727,-500.0,8.219e-05,2]
[353284311,1739740234737,-500.0,8.219e-05,2]
[353284312,1739740234746,-500.0,8.219e-05,2]
[353284313,1739740234756,-505.41185437,8.219e-05,2]
[353284314,1739740234765,-500.0,8.219e-05,2]
[353284315,1739740234775,-500.0,8.219e-05,2]
[353284316,1739740234784,-500.0,8.219e-05,2]
[353284317,1739740234794,-500.0,8.219e-05,2]
[353284318,1739740234803,-500.0,8.219e-05,2]
[353284319,1739740234813,-809.04,8.219e-05,2]
[353284321,1739740234822,-500.0,8.219e-05,2]
[353284323,1739740234831,-500.0,8.219e-05,2]
[353284325,1739740234841,-359.65015428,8.219e-05,2]
[353284327,1739740234851,-500.0,8.219e-05,2]
[353284329,1739740234860,-500.0,8.219e-05,2]
[353284331,1739740234870,-500.0,8.219e-05,2]
[353284333,1739740234879,-500.0,8.219e-05,2]
[353284335,1739740234889,-500.0,8.219e-05,2]
[353284337,1739740234898,-500.0,8.219e-05,2]
[353284339,1739740234908,-500.0,8.219e-05,2]
[353284341,1739740234917,-500.0,8.219e-05,2]
[353284343,1739740234927,-1255.82,8.219e-05,2]
[353284345,1739740234936,-176.13621671,8.219e-05,2]
[353284347,1739740234946,-500.0,8.219e-05,2]
[353284350,1739740234956,-500.0,8.219e-05,2]
[353284352,1739740234965,-500.0,8.219e-05,2]
[353284354,1739740234976,-500.0,8.219e-05,2]
[353284356,1739740234985,-500.0,8.219e-05,2]
[353284358,1739740234994,-500.0,8.219e-05,2]
[353284360,1739740235004,-649.42,8.219e-05,2]
[353284362,1739740235013,-500.0,8.219e-05,2]
[353284364,1739740235022,-500.0,8.219e-05,2]
[353284366,1739740235031,-500.0,8.219e-05,2]
[353284368,1739740235041,-500.0,8.219e-05,2]
[353284370,1739740235050,-500.0,8.219e-05,2]
[353284372,1739740235059,-500.0,8.219e-05,2]
[353284374,1739740235068,-500.0,8.219e-05,2]
[353284376,1739740235077,-1651.61,8.219e-05,2]
[353284378,1739740235086,-500.0,8.219e-05,2]
[353284380,1739740235096,-500.0,8.219e-05,2]
[353284382,1739740235105,-1967.01,8.219e-05,2]
[353284384,1739740235115,-2521.66,8.219e-05,2]
[353284386,1739740235124,-500.0,8.219e-05,2]
[353284388,1739740235134,-501.51614212,8.219e-05,2]
[353284390,1739740235143,-500.0,8.219e-05,2]
[353284392,1739740235153,-500.0,8.219e-05,2]
[353284394,1739740235163,-500.0,8.219e-05,2]
[353284396,1739740235172,-500.0,8.219e-05,2]
[353284398,1739740235182,-618.36,8.219e-05,2]
[353284400,1739740235192,-500.0,8.219e-05,2]
[353284402,1739740235202,-500.0,8.219e-05,2]
[353284404,1739740235211,-500.0,8.219e-05,2]
[353284406,1739740235220,-500.0,8.219e-05,2]
[353284408,1739740235230,-8177.0,8.219e-05,2]
[353284410,1739740235240,-500.0,8.219e-05,2]
[353284412,1739740235249,-500.0,8.219e-05,2]
[353284414,1739740235259,-500.0,8.219e-05,2]
[353284416,1739740235268,-1230.93,8.219e-05,2]
[353284418,1739740235282,-500.0,8.219e-05,2]
[353284420,1739740235291,-500.0,8.219e-05,2]
[353284422,1739740235301,-500.0,8.219e-05,2]
[353284424,1739740235310,-500.0,8.219e-05,2]
[353284426,1739740235320,-1752.51,8.219e-05,2]
[353284428,1739740235330,-500.0,8.219e-05,2]
[353284430,1739740235340,-898.94,8.219e-05,2]
[353284432,1739740235350,-500.0,8.219e-05,2]
[353284435,1739740235360,-621.02,8.219e-05,2]
[353284437,1739740235369,-500.0,8.219e-05,2]
[353284439,1739740235378,-500.0,8.219e-05,2]
[353284441,1739740235387,-2029.01,8.219e-05,2]
[353284443,1739740235396,-500.0,8.219e-05,2]
[353284444,1739740235405,-552.12,8.219e-05,2]
[353284447,1739740235415,-500.0,8.219e-05,2]
[353284449,1739740235424,-500.0,8.219e-05,2]
[353284451,1739740235433,-500.0,8.219e-05,2]
[353284453,1739740235442,-500.0,8.219e-05,2]
[353284455,1739740235451,-699.86,8.219e-05,2]
[353284457,1739740235461,-500.0,8.219e-05,2]
[353284459,1739740235470,-500.0,8.219e-05,2]
[353284461,1739740235480,-500.0,8.219e-05,2]
[353284463,1739740235490,-3947.38,8.219e-05,2]
[353284465,1739740235499,-500.0,8.219e-05,2]
[353284467,1739740235508,-500.0,8.219e-05,2]
[353284469,1739740235517,-500.0,8.219e-05,2]
[353284471,1739740235526,-500.0,8.219e-05,2]
[353284473,1739740235535,-500.0,8.219e-05,2]
[353284475,1739740235544,-500.0,8.219e-05,2]
[353284477,1739740235555,-500.0,8.219e-05,2]
[353284479,1739740235564,-501.14547502,8.219e-05,2]
[353284481,1739740235573,-500.0,8.219e-05,2]
[353284483,1739740235583,-500.0,8.219e-05,2]
[353284485,1739740235592,-500.0,8.219e-05,2]
[353284487,1739740235601,-500.0,8.219e-05,2]
[353284488,1739740235611,-500.0,8.219e-05,2]
[353284491,1739740235620,-500.0,8.219e-05,2]
[353284492,1739740235629,-19053.73,8.219e-05,2]
[353284495,1739740235639,-500.0,8.219e-05,2]
[353284497,1739740235649,-500.0,8.219e-05,2]
[353284499,1739740235659,-500.0,8.219e-05,2]
[353284500,1739740235669,-500.0,8.219e-05,2]
[353284503,1739740235678,-508.28344812,8.219e-05,2]
[353284505,1739740235688,-544.51,8.219e-05,2]
[353284507,1739740235698,-500.0,8.219e-05,2]
[353284509,1739740235707,-500.0,8.219e-05,2]
[353284511,1739740235716,-500.0,8.219e-05,2]
[353284513,1739740235725,-500.0,8.219e-05,2]
[353284515,1739740235734,-500.0,8.219e-05,2]
[353284517,1739740235744,-516.29,8.219e-05,2]
[353284519,1739740235753,-503.94424531,8.219e-05,2]
[353284521,1739740235762,-500.0,8.219e-05,2]
[353284523,1739740235771,-500.0,8.219e-05,2]
[353284525,1739740235780,-500.0,8.219e-05,2]
[353284527,1739740235790,-424.13738773,8.219e-05,2]
[353284529,1739740235799,-500.0,8.219e-05,2]
[353284531,1739740235809,-500.0,8.301e-05,2]
[353284533,1739740235818,-414.81142665,8.301e-05,2]
[353284535,1739740235828,-500.0,8.301e-05,2]
[353284537,1739740235838,-500.0,8.301e-05,2]
[353284539,1739740235847,-500.0,8.301e-05,2]
[353284540,1739740235856,-500.0,8.301e-05,2]
[353284542,1739740235866,-500.0,8.301e-05,2]
[353284544,1739740235876,-500.0,8.301e-05,2]
[353284546,1739740235886,-1146.95,8.301e-05,2]
[353284548,1739740235895,-1176.16,8.301e-05,2]
[353284549,1739740235905,-1184.16,8.301e-05,2]
[353284551,1739740235915,-500.0,8.301e-05,2]
[353284553,1739740235925,-500.0,8.301e-05,2]
[353284555,1739740235934,-500.0,8.301e-05,2]
[353284557,1739740235943,-500.0,8.301e-05,2]
[353284559,1739740235953,-786.17,8.301e-05,2]
[353284561,1739740235962,-500.0,8.301e-05,2]
[353284563,1739740235971,-500.0,8.301e-05,2]
[353284565,1739740235981,-500.0,8.301e-05,2]
[353284566,1739740235991,-500.0,8.301e-05,2]
[353284568,1739740236000,-500.0,8.301e-05,2]
[353284570,1739740236010,-1024.08,8.301e-05,2]
[353284572,1739740236019,-594.12,8.301e-05,2]
[353284573,1739740236028,-500.0,8.301e-05,2]
[353284575,1739740236038,-500.0,8.301e-05,2]
[353284577,1739740236047,-500.0,8.301e-05,2]
[353284579,1739740236056,-547.87,8.301e-05,2]
[353284581,1739740236065,-446.56081707,8.301e-05,2]
[353284583,1739740236074,-500.0,8.301e-05,2]
[353284585,1739740236083,-502.28828291,8.301e-05,2]
[353284587,1739740236092,-500.0,8.301e-05,2]
[353284589,1739740236101,-502.69411031,8.301e-05,2]
[353284591,1739740236111,-500.89192855,8.301e-05,2]
[353284593,1739740236120,-501.53068033,8.301e-05,2]
[353284595,1739740236129,-500.0,8.301e-05,2]
[353284597,1739740236138,-500.0,8.301e-05,2]
[353284599,1739740236148,-500.0,8.301e-05,2]
[353284601,1739740236157,-1960.74,8.301e-05,2]
[353284603,1739740236167,-500.0,8.301e-05,2]
[353284605,1739740236176,-500.0,8.301e-05,2]
[353284607,1739740236185,-588.53,8.301e-05,2]
[353284609,1739740236194,-500.0,8.301e-05,2]
[353284611,1739740236204,-1146.4,8.301e-05,2]
[353284613,1739740236213,-892.63,8.301e-05,2]
[353284615,1739740236223,-500.0,8.301e-05,2]
[353284617,1739740236232,-500.0,8.301e-05,2]
[353284619,1739740236241,-613.35,8.301e-05,2]
[353284621,1739740236251,-500.0,8.301e-05,2]
[353284623,1739740236260,-2714.78,8.301e-05,2]
[353284628,1739740236370,-8813.69,8.301e-05,2]
[353284629,1739740236380,-500.0,8.301e-05,2]
[353284630,1739740236390,-500.0,8.301e-05,2]
[353284631,1739740236400,-532.86,8.301e-05,2]
[353284632,1739740236409,-500.0,8.301e-05,2]
[353284633,1739740236418,-500.0,8.301e-05,2]
[353284634,1739740236428,-1022.45,8.301e-05,2]
[353284635,1739740236437,-765.5,8.301e-05,2]
[353284636,1739740236450,-500.0,8.301e-05,2]
[353284637,1739740236459,-500.0,8.301e-05,2]
[353284638,1739740236469,-500.0,8.301e-05,2]
[353284639,1739740236478,-159.99052167,8.301e-05,2]
[353284640,1739740236488,-500.0,8.301e-05,2]
[353284641,1739740236497,-809.04,8.301e-05,2]
[353284642,1739740236507,-500.0,8.301e-05,2]
[353284643,1739740236517,-500.0,8.301e-05,2]
[353284644,1739740236527,-1255.82,8.301e-05,2]
[353284645,1739740236536,-500.0,8.301e-05,2]
[353284646,1739740236545,-649.42,8.301e-05,2]
[353284647,1739740236555,-500.0,8.301e-05,2]
[353284648,1739740236564,-1651.61,8.301e-05,2]
[353284649,1739740236573,-1967.01,8.301e-05,2]
[353284650,1739740236583,-2521.66,8.301e-05,2]
[353284651,1739740236592,-500.0,8.301e-05,2]
[353284652,1739740236601,-514.15966921,8.301e-05,2]
[353284653,1739740236611,-8177.0,8.301e-05,2]
[353284654,1739740236622,-500.0,8.301e-05,2]
[353284655,1739740236631,-500.0,8.301e-05,2]
[353284656,1739740236640,-500.0,8.301e-05,2]
[353284657,1739740236650,-1230.93,8.301e-05,2]
[353284658,1739740236660,-500.0,8.301e-05,2]
[353284659,1739740236669,-500.0,8.301e-05,2]
[353284660,1739740236679,-500.0,8.301e-05,2]
[353284661,1739740236688,-1752.51,8.301e-05,2]
[353284662,1739740236697,-898.94,8.301e-05,2]
[353284663,1739740236707,-621.02,8.301e-05,2]
[353284664,1739740236717,-2029.01,8.301e-05,2]
[353284665,1739740236726,-500.0,8.301e-05,2]
[353284666,1739740236735,-552.12,8.301e-05,2]
[353284667,1739740236745,-530.31,8.301e-05,2]
[353284668,1739740236755,-500.0,8.301e-05,2]
[353284669,1739740236764,-699.86,8.301e-05,2]
[353284670,1739740236774,-500.0,8.301e-05,2]
[353284671,1739740236784,-3947.38,8.301e-05,2]
[353284672,1739740236793,-500.0,8.301e-05,2]
[353284673,1739740236804,-500.0,8.301e-05,2]
[353284674,1739740236813,-19053.73,8.301e-05,2]
[353284675,1739740236823,-500.0,8.301e-05,2]
[353284676,1739740236833,-500.0,8.301e-05,2]
[353284677,1739740236843,-500.0,8.301e-05,2]
[353284678,1739740236853,-500.0,8.301e-05,2]
[353284679,1739740236863,-771.2096871,8.355e-05,2]
[353284680,1739740236872,-500.0,8.383e-05,2]
[353284681,1739740236882,-500.0,8.383e-05,2]
[353284682,1739740236892,-500.0,8.383e-05,2]
[353284683,1739740236902,-500.0,8.383e-05,2]
[353284684,1739740236911,-500.0,8.383e-05,2]
[353284685,1739740236921,-500.0,8.383e-05,2]
[353284686,1739740236930,-500.0,8.383e-05,2]
[353284687,1739740236939,-1146.95,8.383e-05,2]
[353284688,1739740236949,-1176.16,8.383e-05,2]
[353284689,1739740236959,-1184.16,8.383e-05,2]
[353284690,1739740236968,-414.43288493,8.383e-05,2]
[353284691,1739740236977,-500.0,8.383e-05,2]
[353284692,1739740236986,-500.0,8.383e-05,2]
[353284693,1739740236995,-500.0,8.383e-05,2]
[353284694,1739740237005,-786.17,8.383e-05,2]
[353284695,1739740237014,-500.0,8.383e-05,2]
[353284696,1739740237024,-500.0,8.383e-05,2]
[353284697,1739740237033,-500.0,8.383e-05,2]
[353284698,1739740237043,-500.0,8.383e-05,2]
[353284699,1739740237052,-500.0,8.383e-05,2]
[353284700,1739740237062,-1024.08,8.383e-05,2]
[353284701,1739740237072,-594.12,8.383e-05,2]
[353284702,1739740237081,-500.0,8.383e-05,2]
[353284703,1739740237091,-500.0,8.383e-05,2]
[353284704,1739740237101,-500.0,8.383e-05,2]
[353284705,1739740237111,-547.87,8.383e-05,2]
[353284706,1739740237121,-500.0,8.383e-05,2]
[353284707,1739740237130,-500.0,8.383e-05,2]
[353284708,1739740237140,-500.0,8.383e-05,2]
[353284709,1739740237150,-1960.74,8.383e-05,2]
[353284710,1739740237159,-588.53,8.383e-05,2]
[353284711,1739740237168,-1146.4,8.383e-05,2]
[353284712,1739740237178,-892.63,8.383e-05,2]
[353284713,1739740237187,-500.0,8.383e-05,2]
[353284714,1739740237196,-613.35,8.383e-05,2]
[353284715,1739740237206,-2714.78,8.383e-05,2]
[353284716,1739740237217,-8813.69,8.383e-05,2]
[353284717,1739740237226,-500.0,8.383e-05,2]
[353284718,1739740237236,-151.0,8.383e-05,2]
[353284719,1739740237245,-532.86,8.383e-05,2]
[353284720,1739740237255,-500.0,8.383e-05,2]
[353284721,1739740237264,-500.0,8.383e-05,2]
[353284722,1739740237277,-1022.45,8.383e-05,2]
[353284723,1739740237287,-765.5,8.383e-05,2]
[353284724,1739740237296,-500.0,8.383e-05,2]
[353284725,1739740237306,-500.0,8.383e-05,2]
[353284726,1739740237316,-500.0,8.383e-05,2]
[353284727,1739740237326,-809.04,8.383e-05,2]
[353284728,1739740237335,-500.0,8.383e-05,2]
[353284729,1739740237345,-500.0,8.383e-05,2]
[353284730,1739740237355,-1255.82,8.383e-05,2]
[353284731,1739740237364,-500.0,8.383e-05,2]
[353284732,1739740237374,-649.42,8.383e-05,2]
[353284733,1739740237383,-1651.61,8.383e-05,2]
[353284734,1739740237392,-1967.01,8.383e-05,2]
[353284735,1739740237402,-2521.66,8.383e-05,2]
[353284736,1739740237412,-500.0,8.383e-05,2]
[353284737,1739740237422,-8177.0,8.383e-05,2]
[353284738,1739740237432,-500.0,8.383e-05,2]
[353284739,1739740237441,-1230.93,8.383e-05,2]
[353284740,1739740237450,-500.0,8.383e-05,2]
[353284741,1739740237459,-1752.51,8.383e-05,2]
[353284742,1739740237469,-898.94,8.383e-05,2]
[353284743,1739740237478,-621.02,8.383e-05,2]
[353284744,1739740237487,-2029.01,8.383e-05,2]
[353284745,1739740237496,-552.12,8.383e-05,2]
[353284746,1739740237506,-500.0,8.383e-05,2]
[353284747,1739740237516,-699.86,8.383e-05,2]
[353284748,1739740237526,-167.39,8.383e-05,2]
[353284749,1739740237536,-3947.38,8.383e-05,2]
[353284750,1739740237545,-500.0,8.383e-05,2]
[353284751,1739740237555,-500.0,8.383e-05,2]
[353284752,1739740237565,-19053.73,8.383e-05,2]
[353284753,1739740237578,-500.0,8.383e-05,2]
[353284754,1739740237587,-500.0,8.383e-05,2]
[353284755,1739740237596,-500.0,8.383e-05,2]
[353284756,1739740237606,-500.0,8.465e-05,2]
[353284757,1739740237616,-500.0,8.465e-05,2]
[353284758,1739740237625,-269.52802405,8.465e-05,2]
[353284759,1739740237635,-500.0,8.465e-05,2]
[353284760,1739740237644,-500.0,8.465e-05,2]
[353284761,1739740237653,-500.0,8.465e-05,2]
[353284762,1739740237663,-500.0,8.465e-05,2]
[353284763,1739740237673,-1146.95,8.465e-05,2]
[353284764,1739740237683,-1176.16,8.465e-05,2]
[353284765,1739740237693,-1184.16,8.465e-05,2]
[353284766,1739740237703,-500.0,8.465e-05,2]
[353284767,1739740237714,-500.0,8.465e-05,2]
[353284768,1739740237723,-500.0,8.465e-05,2]
[353284769,1739740237734,-786.17,8.465e-05,2]
[353284770,1739740237744,-500.0,8.465e-05,2]
[353284771,1739740237754,-500.0,8.465e-05,2]
[353284772,1739740237763,-500.0,8.465e-05,2]
[353284773,1739740237773,-500.0,8.465e-05,2]
[353284774,1739740237783,-500.0,8.465e-05,2]
[353284775,1739740237792,-1024.08,8.465e-05,2]
[353284776,1739740237803,-594.12,8.465e-05,2]
[353284777,1739740237812,-500.0,8.465e-05,2]
[353284778,1739740237822,-503.33665387,8.465e-05,2]
[353284779,1739740237832,-500.0,8.465e-05,2]
[353284780,1739740237843,-547.87,8.465e-05,2]
[353284781,1739740237854,-500.0,8.465e-05,2]
[353284782,1739740237864,-500.0,8.465e-05,2]
[353284784,1739740237874,-533.15103977,8.465e-05,2]
[353284786,1739740237884,-1960.74,8.465e-05,2]
[353284787,1739740237893,-588.53,8.465e-05,2]
[353284788,1739740237905,-1146.4,8.465e-05,2]
[353284789,1739740237914,-892.63,8.465e-05,2]
[353284790,1739740237924,-500.0,8.465e-05,2]
[353284791,1739740237934,-613.35,8.465e-05,2]
[353284792,1739740237944,-2714.78,8.465e-05,2]
[353284794,1739740237954,-8813.69,8.465e-05,2]
[353284796,1739740237963,-500.0,8.465e-05,2]
[353284798,1739740237973,-151.0,8.465e-05,2]
[353284800,1739740237982,-532.86,8.465e-05,2]
[353284802,1739740237992,-500.0,8.465e-05,2]
[353284804,1739740238002,-500.0,8.465e-05,2]
[353284805,1739740238011,-1022.45,8.465e-05,2]
[353284806,1739740238020,-765.5,8.465e-05,2]
[353284807,1739740238029,-500.0,8.465e-05,2]
[353284808,1739740238038,-500.0,8.465e-05,2]
[353284809,1739740238048,-500.0,8.465e-05,2]
[353284810,1739740238057,-809.04,8.465e-05,2]
[353284811,1739740238067,-500.0,8.465e-05,2]
[353284812,1739740238076,-500.0,8.465e-05,2]
[353284813,1739740238085,-1255.82,8.465e-05,2]
[353284814,1739740238095,-500.0,8.465e-05,2]
[353284815,1739740238104,-649.42,8.465e-05,2]
[353284816,1739740238113,-1651.61,8.465e-05,2]
[353284817,1739740238122,-1967.01,8.465e-05,2]
[353284818,1739740238132,-2521.66,8.465e-05,2]
[353284819,1739740238141,-500.0,8.465e-05,2]
[353284820,1739740238153,-8177.0,8.465e-05,2]
[353284821,1739740238163,-500.0,8.465e-05,2]
[353284822,1739740238172,-1230.93,8.465e-05,2]
[353284823,1739740238181,-500.0,8.465e-05,2]
[353284824,1739740238190,-1752.51,8.465e-05,2]
[353284825,1739740238199,-898.94,8.465e-05,2]
[353284826,1739740238209,-621.02,8.465e-05,2]